fUST/lending_fUST_20250205
["ID","MTS","AMOUNT","RATE_DAILY","PERIOD"]
[351718488,1738763441537,-500.0,0.00015474,2]
[351718490,1738763441547,-500.0,0.00015474,2]
[351718492,1738763441556,-500.0,0.00015474,2]
[351718494,1738763441566,-500.0,0.00015474,2]
[351718496,1738763441576,-500.0,0.00015474,2]
[351718498,1738763441585,-500.0,0.00015474,2]
[351718500,1738763441595,-502.89173317,0.00015474,2]
[351718502,1738763441605,-500.0,0.00015474,2]
[351718504,1738763441614,-500.0,0.00015474,2]
[351718506,1738763441624,-500.0,0.00015474,2]
[351718508,1738763441634,-1174.56,0.00015474,2]
[351718510,1738763441644,-500.0,0.00015474,2]
[351718512,1738763441653,-500.0,0.00015474,2]
[351718514,1738763441663,-500.0,0.00015474,2]
[351718516,1738763441672,-500.0,0.00015474,2]
[351718518,1738763441684,-500.0,0.00015474,2]
[351718520,1738763441694,-635.36,0.00015474,2]
[351718522,1738763441704,-500.0,0.00015474,2]
[351718524,1738763441715,-500.0,0.00015474,2]
[351718526,1738763441724,-500.0,0.00015474,2]
[351718528,1738763441734,-500.0,0.00015474,2]
[351718530,1738763441746,-220.24451567,0.00015474,2]
[351718532,1738763441756,-500.0,0.00015474,2]
[351718534,1738763441765,-500.0,0.00015474,2]
[351718536,1738763441775,-500.0,0.00015474,2]
[351718538,1738763441786,-500.0,0.00015474,2]
[351718540,1738763441795,-500.0,0.00015474,2]
[351718542,1738763441805,-814.2,0.00015474,2]
[351718544,1738763441816,-500.0,0.00015474,2]
[351718546,1738763441826,-500.0,0.00015474,2]
[351718548,1738763441836,-1220.37,0.00015474,2]
[351718551,1738763441857,-708.05,0.00015474,2]
[351718553,1738763441867,-509.79,0.00015474,2]
[351718555,1738763441877,-500.0,0.00015474,2]
[351718557,1738763441887,-402.65032782,0.00015474,2]
[351718559,1738763441896,-748.48,0.00015474,2]
[351718561,1738763441906,-594.91,0.00015474,2]
[351718563,1738763441915,-500.0,0.00015474,2]
[351718565,1738763441925,-500.0,0.00015474,2]
[351718566,1738763441934,-500.0,0.00015474,2]
[351718569,1738763441944,-500.0,0.00015474,2]
[351718571,1738763441953,-446.62244191,0.00015474,2]
[351718573,1738763441963,-500.0,0.00015474,2]
[351718575,1738763441973,-500.0,0.00015474,2]
[351718577,1738763441984,-500.0,0.00015474,2]
[351718579,1738763441994,-500.0,0.00015474,2]
[351718581,1738763442003,-902.6,0.00015474,2]
[351718583,1738763442013,-537.82,0.00015474,2]
[351718585,1738763442022,-500.0,0.00015474,2]
[351718587,1738763442032,-264.79835381,0.00015474,2]
[351718589,1738763442041,-500.0,0.00015474,2]
[351718591,1738763442051,-500.0,0.00015474,2]
[351718593,1738763442060,-1786.97,0.00015474,2]
[351718595,1738763442069,-650.6,0.00015474,2]
[351718597,1738763442079,-500.0,0.00015474,2]
[351718599,1738763442088,-500.0,0.00015474,2]
[351718601,1738763442099,-502.5275146,0.00015474,2]
[351718603,1738763442109,-500.0,0.00015474,2]
[351718605,1738763442118,-500.0,0.00015474,2]
[351718607,1738763442128,-493.30802377,0.00015474,2]
[351718609,1738763442138,-500.0,0.00015474,2]
[351718611,1738763442147,-500.0,0.00015474,2]
[351718613,1738763442156,-500.0,0.00015474,2]
[351718615,1738763442166,-991.75,0.00015474,2]
[351718617,1738763442176,-500.0,0.00015474,2]
[351718619,1738763442185,-1000.0,0.00015474,2]
[351718621,1738763442194,-867.65,0.00015474,2]
[351718623,1738763442203,-500.0,0.00015474,2]
[351718625,1738763442212,-1174.69,0.00015474,2]
[351718627,1738763442221,-862.37,0.00015474,2]
[351718629,1738763442231,-500.0,0.00015474,2]
[351718631,1738763442240,-464.87876989,0.00015474,2]
[351718632,1738763442249,-639.61989812,0.00015474,2]
[351718634,1738763442259,-2330.05,0.00015474,2]
[351718636,1738763442268,-500.0,0.00015474,2]
[351718638,1738763442277,-500.0,0.00015474,2]
[351718640,1738763442287,-500.0,0.00015474,2]
[351718642,1738763442296,-500.0,0.00015474,2]
[351718644,1738763442305,-833.33,0.00015474,2]
[351718646,1738763442314,-500.0,0.00015474,2]
[351718648,1738763442324,-500.0,0.00015474,2]
[351718649,1738763442333,-500.0,0.00015474,2]
[351718651,1738763442342,-1874.7,0.00015474,2]
[351718653,1738763442351,-602.21471939,0.00015474,2]
[351718655,1738763442361,-500.0,0.00015474,2]
[351718657,1738763442371,-500.0,0.00015474,2]
[351718659,1738763442380,-188.0,0.00015474,2]
[351718661,1738763442389,-501.94613288,0.00015474,2]
[351718663,1738763442399,-853.03,0.00015474,2]
[351718665,1738763442408,-655.44,0.00015474,2]
[351718667,1738763442417,-500.0,0.00015474,2]
[351718669,1738763442428,-500.0,0.00015474,2]
[351718671,1738763442437,-500.0,0.00015474,2]
[351718673,1738763442447,-500.0,0.00015474,2]
[351718675,1738763442457,-500.0,0.00015474,2]
[351718677,1738763442466,-500.0,0.00015474,2]
[351718679,1738763442475,-500.0,0.00015474,2]
[351718681,1738763442485,-1065.85,0.00015474,2]
[351718683,1738763442494,-500.0,0.00015474,2]
[351718685,1738763442504,-478.70808972,0.00015474,2]
[351718687,1738763442513,-503.56299135,0.00015474,2]
[351718689,1738763442523,-500.0,0.00015474,2]
[351718691,1738763442532,-500.0,0.00015474,2]
[351718693,1738763442542,-500.0,0.00015474,2]
[351718695,1738763442552,-500.0,0.00015474,2]
[351718697,1738763442562,-500.0,0.00015474,2]
[351718699,1738763442571,-500.0,0.00015474,2]
[351718701,1738763442581,-502.62023992,0.00015474,2]
[351718703,1738763442590,-500.0,0.00015474,2]
[351718705,1738763442600,-500.0,0.00015474,2]
[351718707,1738763442609,-500.0,0.00015474,2]
[351718709,1738763442619,-502.54326965,0.00015474,2]
[351718711,1738763442628,-997.49,0.00015474,2]
[351718713,1738763442637,-1272.88,0.00015474,2]
[351718716,1738763442647,-500.0,0.00015474,2]
[351718718,1738763442657,-500.0,0.00015474,2]
[351718720,1738763442666,-178.0216987,0.00015474,2]
[351718722,1738763442676,-500.0,0.00015474,2]
[351718724,1738763442685,-500.0,0.00015474,2]
[351718726,1738763442695,-500.0,0.00015474,2]
[351718728,1738763442704,-500.0,0.00015474,2]
[351718730,1738763442714,-500.0,0.00015474,2]
[351718732,1738763442723,-500.0,0.00015474,2]
[351718734,1738763442733,-500.0,0.00015474,2]
[351718736,1738763442744,-300.0,0.00015474,2]
[351718738,1738763442753,-500.0,0.00015474,2]
[351718740,1738763442763,-3850.1,0.00015474,2]
[351718742,1738763442773,-500.0,0.00015474,2]
[351718746,1738763442783,-566.24,0.00015474,2]
[351718750,1738763442793,-500.0,0.00015474,2]
[351718754,1738763442802,-500.0,0.00015474,2]
[351718758,1738763442812,-500.0,0.00015474,2]
[351718762,1738763442824,-500.0,0.00015474,2]
[351718766,1738763442834,-4190.82,0.00015474,2]
[351718770,1738763442843,-500.0,0.00015474,2]
[351718774,1738763442852,-500.0,0.00015474,2]
[351718778,1738763442862,-500.0,0.00015474,2]
[351718782,1738763442871,-262.66160794,0.00015474,2]
[351718785,1738763442880,-301.81898632,0.00015474,2]
[351718789,1738763442889,-500.0,0.00015474,2]
[351718792,1738763442899,-500.0,0.00015474,2]
[351718796,1738763442908,-500.0,0.00015474,2]
[351718800,1738763442917,-500.0,0.00015474,2]
[351718803,1738763442927,-500.0,0.00015474,2]
[351718807,1738763442936,-1043.51,0.00015474,2]
[351718810,1738763442945,-500.0,0.00015474,2]
[351718813,1738763442955,-500.0,0.00015474,2]
[351718816,1738763442964,-500.0,0.00015474,2]
[351718819,1738763442973,-559.52,0.00015474,2]
[351718822,1738763442982,-500.0,0.00015474,2]
[351718824,1738763442992,-827.02,0.00015474,2]
[351718828,1738763443002,-500.0,0.00015474,2]
[351718829,1738763443012,-1127.0,0.00015474,2]
[351718832,1738763443022,-732.38,0.00015474,2]
[351718835,1738763443031,-500.0,0.00015474,2]
[351718838,1738763443042,-500.0,0.00015474,2]
[351718841,1738763443051,-500.0,0.00015474,2]
[351718844,1738763443061,-659.4,0.00015474,2]
[351718847,1738763443070,-500.0,0.00015474,2]
[351718849,1738763443079,-500.0,0.00015474,2]
[351718851,1738763443089,-500.0,0.00015474,2]
[351718853,1738763443099,-1108.5,0.00015474,2]
[351718856,1738763443111,-500.0,0.00015474,2]
[351718858,1738763443121,-500.0,0.00015474,2]
[351718860,1738763443131,-1879.86,0.00015474,2]
[351718862,1738763443140,-500.0,0.00015474,2]
[351718864,1738763443150,-1366.59,0.00015474,2]
[351718866,1738763443163,-500.0,0.00015474,2]
[351718868,1738763443172,-505.45721231,0.00015474,2]
[351718870,1738763443184,-500.0,0.00015474,2]
[351718872,1738763443193,-500.0,0.00015474,2]
[351718874,1738763443203,-500.0,0.00015474,2]
[351718876,1738763443212,-1809.65,0.00015474,2]
[351718878,1738763443221,-780.35,0.00015474,2]
[351718880,1738763443231,-1001.53,0.00015474,2]
[351718882,1738763443240,-604.47,0.00015474,2]
[351718884,1738763443250,-500.0,0.00015474,2]
[351718886,1738763443259,-1210.39,0.00015474,2]
[351718888,1738763443268,-500.0,0.00015474,2]
[351718890,1738763443277,-934.62,0.00015474,2]
[351718892,1738763443286,-500.0,0.00015474,2]
[351718894,1738763443296,-500.0,0.00015474,2]
[351718896,1738763443305,-1000.0,0.00015474,2]
[351718898,1738763443315,-500.0,0.00015474,2]
[351718900,1738763443325,-500.0,0.00015474,2]
[351718902,1738763443334,-500.0,0.00015474,2]
[351718904,1738763443343,-500.0,0.00015474,2]
[351718906,1738763443352,-702.94,0.00015474,2]
[351718908,1738763443361,-500.0,0.00015474,2]
[351718910,1738763443371,-500.0,0.00015474,2]
[351718912,1738763443380,-500.0,0.00015474,2]
[351718914,1738763443389,-500.0,0.00015474,2]
[351718916,1738763443399,-500.0,0.00015474,2]
[351718918,1738763443408,-500.0,0.00015474,2]
[351718920,1738763443417,-500.0,0.00015474,2]
[351718922,1738763443427,-500.0,0.00015474,2]
[351718924,1738763443436,-500.0,0.00015474,2]
[351718926,1738763443446,-500.0,0.00015474,2]
[351718929,1738763443455,-500.0,0.00015474,2]
[351718932,1738763443464,-500.0,0.00015474,2]
[351718935,1738763443474,-500.0,0.00015474,2]
[351718938,1738763443483,-500.0,0.00015474,2]
[351718941,1738763443493,-1129.2,0.00015474,2]
[351718944,1738763443503,-500.0,0.00015474,2]
[351718964,1738763443655,-514.99960741,0.00015474,2]
[351718966,1738763443665,-500.0,0.00015474,2]
[351718968,1738763443675,-500.0,0.00015474,2]
[351718970,1738763443685,-500.0,0.00015474,2]
[351718972,1738763443695,-500.0,0.00015474,2]
[351718974,1738763443704,-500.0,0.00015474,2]
[351718976,1738763443714,-500.0,0.00015474,2]
[351718978,1738763443723,-500.0,0.00015474,2]
[351718981,1738763443734,-500.0,0.00015474,2]
[351718983,1738763443748,-500.0,0.00015474,2]
[351718985,1738763443759,-500.0,0.00015474,2]
[351718987,1738763443768,-1020.82,0.00015474,2]
[351718989,1738763443778,-500.0,0.00015474,2]
[351718991,1738763443787,-500.0,0.00015474,2]
[351718993,1738763443797,-500.0,0.00015474,2]
[351718995,1738763443807,-500.0,0.00015474,2]
[351718997,1738763443818,-500.0,0.00015474,2]
[351718999,1738763443827,-500.0,0.00015474,2]
[351719001,1738763443837,-500.0,0.00015474,2]
[351719003,1738763443846,-500.0,0.00015474,2]
[351719005,1738763443856,-438.22386094,0.00015474,2]
[351719007,1738763443866,-1421.83,0.00015474,2]
[351719009,1738763443875,-500.0,0.00015474,2]
[351719011,1738763443884,-500.0,0.00015474,2]
[351719013,1738763443893,-639.76,0.00015474,2]
[351719015,1738763443903,-500.0,0.00015474,2]
[351719017,1738763443912,-500.0,0.00015474,2]
[351719019,1738763443922,-500.0,0.00015474,2]
[351719022,1738763443933,-500.0,0.00015474,2]
[351719025,1738763443942,-1072.35,0.00015474,2]
[351719028,1738763443951,-507.95164527,0.00015474,2]
[351719031,1738763443960,-500.0,0.00015474,2]
[351719034,1738763443970,-500.0,0.00015474,2]
[351719037,1738763443978,-500.0,0.00015474,2]
[351719039,1738763443987,-500.0,0.00015474,2]
[351719041,1738763443997,-502.94517475,0.00015474,2]
[351719043,1738763444007,-500.0,0.00015474,2]
[351719045,1738763444016,-795.11,0.00015474,2]
[351719047,1738763444026,-500.0,0.00015474,2]
[351719049,1738763444034,-500.0,0.00015474,2]
[351719051,1738763444043,-302.68106921,0.00015474,2]
[351719053,1738763444053,-578.52610759,0.00015474,2]
[351719055,1738763444063,-211.74345682,0.00015474,2]
[351719057,1738763444072,-500.0,0.00015474,2]
[351719059,1738763444081,-503.79388325,0.00015474,2]
[351719061,1738763444091,-500.0,0.00015474,2]
[351719063,1738763444100,-500.0,0.00015474,2]
[351719065,1738763444109,-500.0,0.00015474,2]
[351719067,1738763444118,-642.07,0.00015474,2]
[351719069,1738763444128,-1015.33,0.00015474,2]
[351719071,1738763444137,-1989.35,0.00015474,2]
[351719073,1738763444146,-500.0,0.00015474,2]
[351719075,1738763444156,-500.0,0.00015474,2]
[351719077,1738763444165,-500.0,0.00015474,2]
[351719079,1738763444174,-500.0,0.00015474,2]
[351719081,1738763444183,-500.0,0.00015474,2]
[351719083,1738763444192,-597.31,0.00015474,2]
[351719085,1738763444202,-505.09044525,0.00015474,2]
[351719087,1738763444211,-500.0,0.00015474,2]
[351719089,1738763444222,-500.0,0.00015474,2]
[351719091,1738763444231,-500.49649601,0.00015474,2]
[351719093,1738763444240,-510.55742378,0.00015474,2]
[351719095,1738763444250,-500.0,0.00015474,2]
[351719097,1738763444260,-500.0,0.00015474,2]
[351719100,1738763444269,-500.0,0.00015474,2]
[351719102,1738763444280,-539.06959581,0.00015477,2]
[351719104,1738763444290,-243.96945757,0.00015477,2]
[351719106,1738763444298,-500.0,0.00015477,2]
[351719108,1738763444308,-185.55757975,0.00015477,2]
[351719110,1738763444317,-500.0,0.00015477,2]
[351719112,1738763444327,-500.0,0.00015477,2]
[351719114,1738763444336,-500.0,0.00015477,2]
[351719116,1738763444346,-500.0,0.00015477,2]
[351719118,1738763444355,-515.09877908,0.00015477,2]
[351719120,1738763444363,-500.0,0.00015477,2]
[351719122,1738763444373,-511.95,0.00015477,2]
[351719124,1738763444382,-775.79,0.00015477,2]
[351719126,1738763444392,-500.0,0.00015477,2]
[351719128,1738763444402,-3692.05,0.00015477,2]
[351719130,1738763444411,-1212.76,0.00015477,2]
[351719132,1738763444421,-500.0,0.00015607,2]
[351719134,1738763444432,-6329.57,0.00015607,2]
[351719136,1738763444442,-2585.57,0.00015607,2]
[351719138,1738763444452,-500.0,0.00015607,2]
[351719140,1738763444462,-500.0,0.00015607,2]
[351719142,1738763444472,-3748.11,0.00015607,2]
[351719144,1738763444482,-876.66,0.00015607,2]
[351719146,1738763444492,-500.0,0.00015607,2]
[351719148,1738763444501,-366.57653058,0.00015608,2]
[351719150,1738763444511,-926.74,0.00015608,2]
[351719152,1738763444520,-500.0,0.00015608,2]
[351719154,1738763444530,-500.0,0.00015608,2]
[351719156,1738763444540,-500.0,0.00015608,2]
[351719158,1738763444549,-500.0,0.00015608,2]
[351719160,1738763444558,-500.0,0.00015608,2]
[351719162,1738763444568,-500.0,0.00015608,2]
[351719164,1738763444576,-500.0,0.00015608,2]
[351719166,1738763444586,-500.0,0.00015608,2]
[351719168,1738763444595,-500.0,0.00015608,2]
[351719170,1738763444605,-908.4,0.00015608,2]
[351719172,1738763444615,-500.0,0.00015608,2]
[351719174,1738763444624,-500.0,0.00015608,2]
[351719176,1738763444634,-500.0,0.00015608,2]
[351719178,1738763444644,-500.0,0.00015608,2]
[351719180,1738763444653,-500.0,0.00015608,2]
[351719182,1738763444664,-11291.17,0.00015608,2]
[351719184,1738763444673,-500.0,0.00015608,2]
[351719186,1738763444687,-553.84,0.00015608,2]
[351719188,1738763444696,-990.15,0.00015608,2]
[351719190,1738763444706,-500.0,0.00015608,2]
[351719192,1738763444715,-533.99,0.00015608,2]
[351719194,1738763444724,-621.73,0.00015608,2]
[351719196,1738763444734,-500.0,0.00015608,2]
[351719198,1738763444746,-500.0,0.00015608,2]
[351719200,1738763444756,-500.0,0.00015608,2]
[351719202,1738763444765,-500.0,0.00015608,2]
[351719204,1738763444775,-18527.06,0.00015608,2]
[351719206,1738763444786,-500.0,0.00015608,2]
[351719208,1738763444796,-511.4767295,0.00015608,2]
[351719210,1738763444805,-500.0,0.00015608,2]
[351719212,1738763444816,-228.63496614,0.00015608,2]
[351719214,1738763444825,-654.35,0.00015608,2]
[351719216,1738763444835,-500.0,0.00015608,2]
[351719218,1738763444844,-500.0,0.00015608,2]
[351719220,1738763444854,-500.0,0.00015608,2]
[351719222,1738763444863,-521.1,0.00015608,2]
[351719224,1738763444872,-500.0,0.00015608,2]
[351719226,1738763444882,-500.0,0.00015608,2]
[351719228,1738763444892,-7386.5,0.00015608,2]
[351719230,1738763444902,-500.0,0.00015608,2]
[351719232,1738763444911,-8920.75,0.00015608,2]
[351719234,1738763444921,-500.0,0.00015608,2]
[351719236,1738763444931,-3873.05,0.00015608,2]
[351719238,1738763444941,-500.0,0.00015608,2]
[351719240,1738763444950,-500.0,0.00015608,2]
[351719242,1738763444959,-500.0,0.00015608,2]
[351719244,1738763444969,-519.22,0.00015608,2]
[351719246,1738763444979,-500.0,0.00015608,2]
[351719248,1738763444989,-2732.16,0.00015608,2]
[351719250,1738763444999,-500.0,0.00015608,2]
[351719252,1738763445008,-1302.9,0.00015608,2]
[351719254,1738763445018,-500.0,0.00015608,2]
[351719256,1738763445027,-625.69,0.00015608,2]
[351719258,1738763445036,-1905.11,0.00015608,2]
[351719260,1738763445045,-500.0,0.00015608,2]
[351719262,1738763445055,-500.0,0.00015608,2]
[351719264,1738763445065,-742.34,0.00015608,2]
[351719266,1738763445074,-1238.88,0.00015608,2]
[351719268,1738763445084,-500.0,0.00015608,2]
[351719270,1738763445094,-500.0,0.00015608,2]
[351719272,1738763445103,-500.0,0.00015608,2]
[351719274,1738763445113,-500.0,0.00015608,2]
[351719276,1738763445122,-500.0,0.00015608,2]
[351719278,1738763445131,-1015.14,0.00015608,2]
[351719280,1738763445140,-500.0,0.00015608,2]
[351719282,1738763445150,-500.0,0.00015608,2]
[351719284,1738763445159,-500.0,0.00015608,2]
[351719286,1738763445169,-398.270899,0.00015608,2]
[351719288,1738763445179,-500.0,0.00015608,2]
[351719290,1738763445189,-398.270899,0.00015608,2]
[351719292,1738763445198,-751.76,0.00015608,2]
[351719294,1738763445207,-500.0,0.00015608,2]
[351719296,1738763445217,-3228.08,0.00015608,2]
[351719298,1738763445226,-500.0,0.00015608,2]
[351719300,1738763445235,-3088.01,0.00015608,2]
[351719302,1738763445244,-7930.55,0.00015608,2]
[351719305,1738763445254,-12931.27,0.00015608,2]
[351719307,1738763445263,-632.73,0.00015608,2]
[351719309,1738763445274,-730.79,0.00015608,2]
[351719311,1738763445283,-500.0,0.00015608,2]
[351719313,1738763445292,-626.28,0.00015608,2]
[351719315,1738763445301,-500.0,0.00015608,2]
[351719317,1738763445310,-500.0,0.00015608,2]
[351719319,1738763445319,-500.0,0.00015608,2]
[351719321,1738763445329,-500.0,0.00015608,2]
[351719323,1738763445338,-812.79,0.00015608,2]
[351719325,1738763445347,-3210.64,0.00015608,2]
[351719327,1738763445357,-673.88,0.00015608,2]
[351719329,1738763445366,-9887.51,0.00015608,2]
[351719331,1738763445376,-763.51,0.00015608,2]
[351719333,1738763445385,-563.47,0.00015609,2]
[351719335,1738763445395,-1156.54,0.00015609,2]
[351719337,1738763445405,-500.0,0.00015609,2]
[351719339,1738763445414,-592.83,0.00015609,2]
[351719341,1738763445423,-3475.05,0.00015609,2]
[351719343,1738763445434,-2146.01,0.00015609,2]
[351719345,1738763445443,-500.0,0.00015609,2]
[351719347,1738763445452,-500.0,0.00015609,2]
[351719349,1738763445461,-530.96,0.00015609,2]
[351719351,1738763445472,-1588.77,0.00015609,2]
[351719353,1738763445483,-1488.74,0.00015609,2]
[351719355,1738763445494,-1037.21,0.00015609,2]
[351719357,1738763445504,-2559.54,0.00015609,2]
[351719359,1738763445514,-1259.01,0.00015609,2]
[351719361,1738763445523,-500.0,0.00015609,2]
[351719363,1738763445533,-500.0,0.00015609,2]
[351719365,1738763445543,-500.0,0.00015609,2]
[351719368,1738763445553,-500.0,0.00015609,2]
[351719370,1738763445563,-1717.42,0.00015609,2]
[351719372,1738763445573,-151.0,0.00015609,2]
[351719374,1738763445582,-500.0,0.00015609,2]
[351719376,1738763445592,-519.29,0.00015609,2]
[351719378,1738763445601,-151.0,0.00015609,2]
[351719380,1738763445611,-1820.73,0.00015609,2]
[351719382,1738763445620,-1645.43,0.00015609,2]
[351719384,1738763445629,-500.0,0.00015609,2]
[351719386,1738763445638,-1187.34,0.00015609,2]
[351719388,1738763445648,-2650.55,0.00015609,2]
[351719390,1738763445658,-854.13,0.00015609,2]
[351719392,1738763445667,-1031.56,0.00015609,2]
[351719394,1738763445680,-500.0,0.00015609,2]
[351719397,1738763445690,-500.0,0.00015609,2]
[351719398,1738763445699,-1580.38,0.00015609,2]
[351719401,1738763445709,-679.68,0.00015609,2]
[351719403,1738763445720,-1108.91,0.00015609,2]
[351719405,1738763445730,-500.0,0.00015609,2]
[351719407,1738763445742,-2114.3,0.00015609,2]
[351719409,1738763445754,-500.0,0.00015609,2]
[351719411,1738763445764,-500.0,0.00015609,2]
[351719413,1738763445775,-500.0,0.00015609,2]
[351719415,1738763445786,-500.0,0.00015609,2]
[351719417,1738763445796,-4726.84,0.00015609,2]
[351719419,1738763445805,-500.0,0.00015609,2]
[351719421,1738763445815,-414.03719197,0.00015609,2]
[351719423,1738763445826,-823.98,0.00015609,2]
[351719425,1738763445836,-4080.62,0.00015609,2]
[351719427,1738763445846,-3558.22,0.00015609,2]
[351719429,1738763445856,-500.0,0.00015609,2]
[351719431,1738763445865,-500.0,0.00015609,2]
[351719433,1738763445874,-500.0,0.00015609,2]
[351719435,1738763445883,-2936.92,0.00015609,2]
[351719437,1738763445892,-500.0,0.00015609,2]
[351719439,1738763445902,-1440.9,0.00015609,2]
[351719441,1738763445911,-4117.99,0.00015609,2]
[351719443,1738763445919,-495.71475009,0.00015609,2]
[351719445,1738763445930,-500.0,0.00015609,2]
[351719447,1738763445939,-500.0,0.00015609,2]
[351719449,1738763445949,-500.0,0.00015609,2]
[351719451,1738763445958,-500.0,0.00015609,2]
[351719453,1738763445967,-500.0,0.00015609,2]
[351719455,1738763445976,-500.0,0.00015609,2]
[351719457,1738763445987,-982.98,0.00015609,2]
[351719459,1738763445996,-500.0,0.00015609,2]
[351719461,1738763446005,-656.19,0.00015609,2]
[351719463,1738763446015,-1394.99,0.00015609,2]
[351719465,1738763446024,-1106.76,0.00015609,2]
[351719467,1738763446035,-653.94,0.00015609,2]
[351719469,1738763446044,-1411.42,0.00015609,2]
[351719471,1738763446054,-500.0,0.00015609,2]
[351719473,1738763446063,-8275.04,0.00015609,2]
[351719475,1738763446073,-500.0,0.00015609,2]
[351719477,1738763446082,-1585.42,0.00015609,2]
[351719479,1738763446091,-698.62,0.00015609,2]
[351719481,1738763446100,-500.0,0.00015609,2]
[351719483,1738763446110,-178.00689569,0.00015609,2]
[351719485,1738763446119,-3069.18,0.00015609,2]
[351719487,1738763446128,-668.99,0.00015609,2]
[351719489,1738763446137,-500.0,0.00015609,2]
[351719491,1738763446147,-500.0,0.00015609,2]
[351719493,1738763446156,-500.0,0.00015609,2]
[351719495,1738763446165,-500.0,0.00015609,2]
[351719497,1738763446175,-1514.7,0.00015609,2]
[351719499,1738763446185,-948.31,0.00015609,2]
[351719501,1738763446194,-1645.7,0.00015609,2]
[351719503,1738763446203,-657.43,0.00015609,2]
[351719505,1738763446212,-988.45,0.00015609,2]
[351719507,1738763446222,-500.0,0.00015609,2]
[351719509,1738763446232,-500.0,0.00015609,2]
[351719511,1738763446241,-398.270899,0.00015609,2]
[351719513,1738763446251,-514.94,0.00015609,2]
[351719515,1738763446260,-398.270899,0.00015609,2]
[351719517,1738763446269,-500.0,0.00015609,2]
[351719542,1738763446459,-8083.43,0.00015609,2]
[351719547,1738763446486,-500.0,0.00015609,2]
[351719550,1738763446496,-500.0,0.00015609,2]
[351719553,1738763446505,-500.0,0.00015609,2]
[351719556,1738763446514,-500.0,0.00015609,2]
[351719559,1738763446524,-326.52367571,0.00015609,2]
[351719564,1738763446535,-500.0,0.00015609,2]
[351719567,1738763446544,-584.83,0.00015609,2]
[351719569,1738763446553,-500.0,0.00015609,2]
[351719572,1738763446562,-500.0,0.00015609,2]
[351719575,1738763446571,-500.0,0.00015609,2]
[351719578,1738763446581,-500.0,0.00015609,2]
[351719581,1738763446591,-500.0,0.00015609,2]
[351719583,1738763446600,-2732.02,0.00015609,2]
[351719584,1738763446609,-505.72471782,0.00015609,2]
[351719587,1738763446619,-500.0,0.00015609,2]
[351719589,1738763446628,-500.0,0.00015609,2]
[351719590,1738763446637,-500.0,0.00015609,2]
[351719593,1738763446646,-124691.77,0.00015609,2]
[351719595,1738763446656,-500.0,0.00015609,2]
[351719597,1738763446665,-500.0,0.00015609,2]
[351719599,1738763446674,-5345.6,0.00015609,2]
[351719601,1738763446685,-41618.06,0.00015609,2]
[351719603,1738763446695,-151.0,0.0001561,2]